bitfinex/quotes_SOLUSD_20250626
["timestamp","ask_amount","ask_price","bid_price","bid_amount"]
[1750950741680,0.04,143.33,143.29,88.7]
[1750950742272,0.04,143.33,143.26,88.7]
[1750950742474,5.16138114,143.32,143.26,88.7]
[1750950743301,0.04,143.33,143.27,47.44964886]
[1750950743598,0.04,143.33,143.27,54.11932075]
[1750950743771,0.04,143.33,143.27,47.44964886]
[1750950744166,0.04,143.33,143.27,54.11932075]
[1750950745988,0.04,143.33,143.27,28.8]
[1750950746666,0.04,143.33,143.27,117.5]
[1750950747388,5.20138114,143.33,143.27,88.7]
[1750950747598,11.65310757,143.33,143.27,88.7]
[1750950747771,11.65310757,143.33,143.25,6.3]
[1750950748171,5.16138114,143.32,143.25,6.3]
[1750950749583,12.13917342,143.32,143.25,6.3]
[1750950750183,1.6361,143.31,143.25,6.3]
[1750950750390,5.16138114,143.3,143.25,6.3]
[1750950751599,12.14016787,143.3,143.25,6.3]
[1750950752172,5.16138114,143.3,143.25,6.3]
[1750950752885,12.13977102,143.3,143.25,6.3]
[1750950756095,5.16138114,143.3,143.25,6.3]
[1750950756304,1.6361,143.31,143.25,95.0]
[1750950756604,8.61404373,143.31,143.25,95.0]
[1750950757202,1.6361,143.31,143.25,95.0]
[1750950757400,8.61398735,143.31,143.25,95.0]
[1750950758090,1.6361,143.31,143.25,95.0]
[1750950758590,8.61401098,143.31,143.25,95.0]
[1750950760806,13.77539212,143.31,143.25,6.3]
[1750950760977,5.16138114,143.3,143.25,6.3]
[1750950761598,32.51043771,143.31,143.25,6.3]
[1750950761793,37.67181885,143.31,143.25,6.3]
[1750950761994,32.51043771,143.31,143.25,6.3]
[1750950762195,37.67181885,143.31,143.25,6.3]
[1750950762380,32.51043771,143.31,143.25,6.3]
[1750950762590,37.67181885,143.31,143.25,6.3]
[1750950762890,32.51043771,143.31,143.25,6.3]
[1750950763106,37.67181885,143.31,143.25,6.3]
[1750950763398,6.97885407,143.29,143.25,6.3]
[1750950764609,12.13999287,143.3,143.25,6.3]
[1750950764788,5.16138114,143.3,143.25,6.3]
[1750950764988,8.61420863,143.31,143.25,6.3]
[1750950765300,5.16138114,143.31,143.26,18.64964886]
[1750950765507,12.17833581,143.33,143.27,8.31817189]
[1750950765712,0.04,143.33,143.27,97.01817189]
[1750950767602,0.04,143.33,143.28,18.79181043]
[1750950767801,0.04,143.33,143.28,114.16148232]
[1750950767999,0.04,143.33,143.29,35.46967189]
[1750950768705,0.04,143.33,143.29,28.8]
[1750950769090,0.04,143.33,143.29,35.46967189]
[1750950769290,0.04,143.33,143.29,28.8]
[1750950771115,5.23976504,143.33,143.29,28.8]
[1750950771303,0.04,143.33,143.28,88.7]
[1750950771501,5.23976504,143.33,143.28,88.7]
[1750950771707,0.04,143.33,143.28,88.7]
[1750950772014,5.23976504,143.33,143.28,88.7]
[1750950777420,0.04,143.33,143.29,28.8]
[1750950777612,5.23976504,143.33,143.29,28.8]
[1750950777819,0.04,143.33,143.29,28.8]
[1750950778122,5.23976504,143.33,143.29,35.46967189]
[1750950778305,0.04,143.33,143.29,35.46967189]
[1750950778506,5.23976504,143.33,143.29,35.46967189]
[1750950778814,0.04,143.33,143.29,35.46967189]
[1750950779107,5.23976504,143.33,143.29,35.46967189]
[1750950779314,0.04,143.33,143.29,124.16967189]
[1750950779502,5.23976504,143.33,143.3,25.46148232]
[1750950779719,0.04,143.33,143.31,35.1]
[1750950780030,0.04,143.33,143.31,42.4674599]
[1750950780197,0.04,143.33,143.31,35.1]
[1750950785839,0.04,143.33,143.29,6.28]
[1750950786013,5.23976504,143.33,143.29,6.28]
[1750950786221,0.04,143.33,143.29,6.28]
[1750950786513,5.23976504,143.33,143.29,6.28]
[1750950786830,0.04,143.33,143.29,6.28]
[1750950787028,5.23976504,143.33,143.29,6.28]
[1750950787204,0.04,143.33,143.29,6.28]
[1750950787404,5.23976504,143.33,143.29,6.28]
[1750950787613,0.04,143.33,143.29,6.28]
[1750950787823,5.23976504,143.33,143.29,6.28]
[1750950788848,6.71566504,143.32,143.26,88.7]
[1750950789016,18.13267134,143.31,143.26,88.7]
[1750950789215,5.19976504,143.3,143.26,88.7]
[1750950791035,12.17825151,143.3,143.26,88.7]
[1750950791428,5.19976504,143.29,143.25,6.28]
[1750950791952,5.19976504,143.3,143.25,6.28]
[1750950792454,11.63296504,143.31,143.25,94.98]
[1750950792675,11.63296504,143.31,143.26,47.59181043]
[1750950792828,6.71566504,143.32,143.26,47.59181043]
[1750950793154,6.71566504,143.32,143.26,136.29181043]
[1750950794040,6.71566504,143.32,143.26,142.96148232]
[1750950794223,5.19976504,143.32,143.26,149.94177201]
[1750950794629,5.23976504,143.33,143.26,149.94177201]
[1750950794849,5.23976504,143.33,143.28,18.79181043]
[1750950795022,5.23976504,143.33,143.29,28.8]
[1750950795223,5.23976504,143.33,143.29,117.5]
[1750950795450,0.04,143.33,143.29,118.1978854]
[1750950795635,0.04,143.33,143.29,124.86755729]
[1750950795926,0.04,143.33,143.3,25.46148232]
[1750950796269,0.04,143.33,143.32,18.79181043]
[1750950796440,0.04,143.33,143.32,25.46148232]
[1750950797744,0.04,143.33,143.32,26.15922164]
[1750950799547,0.04,143.33,143.31,94.98]
[1750950799731,0.04,143.33,143.32,28.78]
[1750950800056,0.04,143.33,143.31,6.28]
[1750950804470,5.23976504,143.33,143.31,6.28]
[1750950804666,5.19976504,143.32,143.27,117.48]
[1750950804865,5.19976504,143.32,143.27,28.78]
[1750950806338,5.23976504,143.33,143.27,28.78]
[1750950806541,5.19976504,143.32,143.27,28.78]
[1750950806751,5.19976504,143.32,143.28,18.79181043]
[1750950807950,5.23976504,143.33,143.28,18.79181043]
[1750950808367,5.23976504,143.33,143.29,6.66967189]
[1750950808569,0.04,143.33,143.3,28.78]
[1750950808775,0.04,143.33,143.3,117.48]
[1750950808949,5.23976504,143.33,143.3,117.48]
[1750950809149,0.04,143.33,143.3,117.48]
[1750950809571,5.23976504,143.33,143.3,117.48]
[1750950809855,0.04,143.33,143.3,117.48]
[1750950810063,5.23976504,143.33,143.3,117.48]
[1750950810264,0.04,143.33,143.3,117.48]
[1750950810476,5.23976504,143.33,143.3,117.48]
[1750950810776,0.04,143.33,143.3,117.48]
[1750950811163,5.23976504,143.33,143.3,117.48]
[1750950811361,0.04,143.33,143.3,117.48]
[1750950811766,5.23976504,143.33,143.3,117.48]
[1750950811957,0.04,143.33,143.3,88.7]
[1750950812156,5.19976504,143.32,143.3,88.7]
[1750950818483,5.19976504,143.31,143.28,94.98]
[1750950818681,12.17774162,143.31,143.28,6.28]
[1750950818890,5.19976504,143.3,143.28,6.28]
[1750950819054,5.19976504,143.31,143.28,6.28]
[1750950819255,5.19976504,143.3,143.28,6.28]
[1750950819458,12.17774012,143.31,143.28,6.28]
[1750950819680,5.19976504,143.3,143.28,6.28]
[1750950821892,5.19976504,143.31,143.28,6.28]
[1750950822091,5.19976504,143.3,143.28,6.28]
[1750950822285,5.19976504,143.31,143.28,6.28]
[1750950822484,5.19976504,143.3,143.28,6.28]
[1750950823088,5.19976504,143.29,143.28,6.28]
[1750950823270,5.19976504,143.3,143.28,6.28]
[1750950823470,5.19976504,143.29,143.28,6.28]
[1750950823687,5.19976504,143.3,143.28,6.28]
[1750950823871,5.19976504,143.29,143.28,6.28]
[1750950824070,5.19976504,143.3,143.28,6.28]
[1750950824271,5.19976504,143.29,143.28,6.28]
[1750950824489,5.19976504,143.3,143.28,6.28]
[1750950824696,5.19976504,143.29,143.28,6.28]
[1750950824986,5.19976504,143.3,143.28,6.28]
[1750950825197,5.19976504,143.29,143.28,6.28]
[1750950825503,5.19976504,143.3,143.28,6.28]
[1750950825675,5.19976504,143.31,143.28,6.28]
[1750950825877,5.19976504,143.3,143.28,6.28]
[1750950826078,5.19976504,143.31,143.28,6.28]
[1750950826298,5.19976504,143.3,143.28,6.28]
[1750950826497,5.19976504,143.31,143.28,6.28]
[1750950826678,5.19976504,143.3,143.28,6.28]
[1750950826877,5.19976504,143.31,143.28,6.28]
[1750950827103,5.19976504,143.3,143.28,6.28]
[1750950827403,5.19976504,143.31,143.28,6.28]
[1750950827603,5.19976504,143.3,143.28,6.28]
[1750950827810,5.19976504,143.31,143.28,6.28]
[1750950827991,5.19976504,143.3,143.28,6.28]
[1750950828181,5.19976504,143.31,143.28,6.28]
[1750950828382,5.19976504,143.3,143.28,6.28]
[1750950828597,5.19976504,143.31,143.28,6.28]
[1750950829112,5.19976504,143.32,143.28,6.28]
[1750950829407,5.19976504,143.31,143.28,94.98]
[1750950829594,5.19976504,143.32,143.28,94.98]
[1750950829792,5.19976504,143.31,143.28,94.98]
[1750950830002,5.19976504,143.32,143.28,94.98]
[1750950830204,5.19976504,143.31,143.28,94.98]
[1750950830509,5.19976504,143.32,143.28,94.98]
[1750950830806,5.19976504,143.31,143.28,101.64967189]
[1750950831005,5.19976504,143.32,143.28,94.98]
[1750950833303,5.19976504,143.31,143.28,94.98]
[1750950834106,5.19976504,143.32,143.28,94.98]
[1750950834410,5.19976504,143.31,143.28,94.98]
[1750950834586,5.19976504,143.3,143.28,94.98]
[1750950834785,5.19976504,143.31,143.28,6.28]
[1750950835411,5.19976504,143.3,143.28,6.28]
[1750950835578,5.19976504,143.31,143.28,6.28]
[1750950835782,5.19976504,143.3,143.28,6.28]
[1750950836405,5.19976504,143.31,143.28,6.28]
[1750950836578,5.19976504,143.3,143.28,6.28]
[1750950836788,13.47729633,143.32,143.28,6.28]
[1750950836789,5.19976504,143.31,143.28,6.28]
[1750950836995,5.19976504,143.3,143.28,6.28]
[1750950837306,5.19976504,143.31,143.28,6.28]
[1750950837513,5.19976504,143.3,143.28,6.28]
[1750950837697,5.19976504,143.31,143.28,6.28]
[1750950838007,5.19976504,143.3,143.28,6.28]
[1750950838185,5.19976504,143.31,143.28,6.28]
[1750950838381,5.19976504,143.3,143.28,6.28]
[1750950838581,12.17774379,143.31,143.28,6.28]
[1750950838799,5.19976504,143.3,143.28,6.28]
[1750950838986,5.19976504,143.29,143.28,6.28]
[1750950839186,5.19976504,143.31,143.28,6.28]
[1750950839388,5.19976504,143.31,143.28,94.98]
[1750950839806,5.19976504,143.32,143.28,94.98]
[1750950840007,5.19976504,143.31,143.28,94.98]
[1750950840197,5.19976504,143.32,143.28,94.98]
[1750950840381,5.19976504,143.31,143.28,94.98]
[1750950840586,5.19976504,143.32,143.28,94.98]
[1750950840788,5.19976504,143.31,143.28,94.98]
[1750950840987,5.19976504,143.32,143.28,94.98]
[1750950841204,5.19976504,143.31,143.28,94.98]
[1750950841513,5.19976504,143.3,143.28,94.98]
[1750950841805,5.19976504,143.32,143.28,94.98]
[1750950841992,5.19976504,143.31,143.28,108.62898135]
[1750950842303,5.19976504,143.32,143.28,108.62898135]
[1750950842501,5.19976504,143.32,143.29,25.46148232]
[1750950842704,5.19976504,143.32,143.29,18.79181043]
[1750950843315,5.19976504,143.31,143.29,18.79181043]
[1750950843499,5.19976504,143.32,143.29,18.79181043]
[1750950843690,5.19976504,143.31,143.29,18.79181043]
[1750950843888,5.19976504,143.32,143.29,18.79181043]
[1750950844089,5.19976504,143.31,143.29,18.79181043]
[1750950844286,5.19976504,143.32,143.29,107.49181043]
[1750950844513,5.19976504,143.31,143.29,107.49181043]
[1750950844812,5.19976504,143.32,143.29,107.49181043]
[1750950844992,5.19976504,143.31,143.29,107.49181043]
[1750950845184,5.19976504,143.32,143.29,107.49181043]
[1750950845512,5.19976504,143.31,143.29,143.23061417]
[1750950845718,5.19976504,143.3,143.29,136.25181043]
[1750950845913,5.19976504,143.32,143.29,136.25181043]
[1750950846097,5.19976504,143.31,143.29,136.25181043]
[1750950846296,5.19976504,143.3,143.29,136.25181043]
[1750950846506,5.19976504,143.32,143.29,136.25181043]
[1750950846700,5.19976504,143.31,143.29,136.25181043]
[1750950847015,5.19976504,143.3,143.29,136.25181043]
[1750950847215,5.19976504,143.32,143.29,136.25181043]
[1750950847423,5.19976504,143.31,143.29,136.25181043]
[1750950847599,5.19976504,143.3,143.29,136.25181043]
[1750950847925,5.19976504,143.32,143.29,136.25181043]
[1750950848129,5.19976504,143.31,143.29,136.25181043]
[1750950848297,5.19976504,143.3,143.29,136.25181043]
[1750950848496,5.19976504,143.32,143.29,136.25181043]
[1750950848719,5.19976504,143.31,143.29,136.25181043]
[1750950848924,5.19976504,143.3,143.29,136.25181043]
[1750950849132,5.19976504,143.32,143.29,136.25181043]
[1750950849420,5.19976504,143.31,143.29,136.25181043]
[1750950849607,5.19976504,143.3,143.29,136.25181043]
[1750950849918,5.19976504,143.32,143.29,136.25181043]
[1750950850123,5.19976504,143.31,143.29,136.25181043]
[1750950850307,5.19976504,143.3,143.29,136.25181043]
[1750950850508,5.19976504,143.32,143.29,136.25181043]
[1750950850712,5.19976504,143.31,143.29,136.25181043]
[1750950850917,5.19976504,143.3,143.29,136.25181043]
[1750950851121,5.19976504,143.32,143.29,136.25181043]
[1750950851344,5.19976504,143.31,143.29,136.25181043]
[1750950851512,5.19976504,143.3,143.29,136.25181043]
[1750950851712,5.19976504,143.32,143.29,136.25181043]
[1750950851895,5.19976504,143.31,143.29,136.25181043]
[1750950852100,5.19976504,143.3,143.29,136.25181043]
[1750950852304,5.19976504,143.32,143.29,136.25181043]
[1750950852517,5.19976504,143.31,143.29,136.25181043]
[1750950852801,5.19976504,143.3,143.29,136.25181043]
[1750950853002,5.19976504,143.32,143.29,136.25181043]
[1750950853313,5.19976504,143.31,143.29,136.25181043]
[1750950853515,5.19976504,143.3,143.29,136.25181043]
[1750950853818,5.19976504,143.32,143.29,136.25181043]
[1750950854004,5.19976504,143.31,143.29,136.25181043]
[1750950854205,5.19976504,143.3,143.29,136.25181043]
[1750950854528,5.19976504,143.32,143.29,136.25181043]
[1750950854729,5.19976504,143.31,143.29,136.25181043]
[1750950854897,5.19976504,143.3,143.29,136.25181043]
[1750950855103,5.19976504,143.32,143.29,136.25181043]
[1750950855400,5.19976504,143.31,143.29,136.25181043]
[1750950855602,5.19976504,143.3,143.29,136.25181043]
[1750950855803,5.19976504,143.32,143.29,136.25181043]
[1750950856020,5.19976504,143.31,143.29,136.25181043]
[1750950856227,5.19976504,143.3,143.29,88.7]
[1750950856515,5.19976504,143.32,143.29,88.7]
[1750950856716,5.19976504,143.31,143.29,88.7]
[1750950856912,5.19976504,143.3,143.29,88.7]
[1750950857127,5.19976504,143.32,143.29,88.7]
[1750950857334,5.19976504,143.31,143.28,6.28]
[1750950857501,5.19976504,143.3,143.28,6.28]
[1750950857709,5.19976504,143.29,143.28,6.28]
[1750950857906,5.19976504,143.31,143.28,6.28]
[1750950858124,5.19976504,143.3,143.28,6.28]
[1750950858320,5.19976504,143.29,143.28,6.28]
[1750950864227,5.19976504,143.31,143.28,6.28]
[1750950864434,5.19976504,143.3,143.28,6.28]
[1750950864631,5.19976504,143.29,143.28,6.28]
[1750950864836,5.19976504,143.31,143.28,6.28]
[1750950865026,5.19976504,143.3,143.28,94.98]
[1750950865229,5.19976504,143.29,143.28,94.98]
[1750950865428,5.19976504,143.31,143.28,94.98]
[1750950865633,5.19976504,143.3,143.28,108.62900544]
[1750950865816,5.19976504,143.32,143.28,108.62900544]
[1750950866017,5.19976504,143.31,143.28,101.64967189]
[1750950866221,5.19976504,143.32,143.29,55.73848232]
[1750950866424,5.19976504,143.31,143.3,25.46148232]
[1750950866626,0.04,143.33,143.3,25.46148232]
[1750950866837,5.23976504,143.33,143.3,114.16148232]
[1750950867132,0.04,143.33,143.3,114.16148232]
[1750950867541,5.23976504,143.33,143.3,114.16148232]
[1750950867742,0.04,143.33,143.3,114.16148232]
[1750950868117,5.23976504,143.33,143.3,121.13979798]
[1750950868318,0.04,143.33,143.3,114.16148232]
[1750950868718,5.23976504,143.33,143.3,107.49181043]
[1750950868935,0.04,143.33,143.3,107.49181043]
[1750950869323,5.23976504,143.33,143.3,107.49181043]
[1750950869519,5.19976504,143.32,143.3,107.49181043]
[1750950870236,5.19976504,143.32,143.3,88.7]
[1750950871325,5.19976504,143.31,143.3,88.7]
[1750950871525,5.19976504,143.32,143.3,88.7]
[1750950871841,5.19976504,143.31,143.3,88.7]
[1750950872026,5.19976504,143.32,143.3,88.7]
[1750950872233,5.19976504,143.31,143.3,88.7]
[1750950872543,5.19976504,143.31,143.28,6.28]
[1750950872842,5.19976504,143.3,143.28,6.28]
[1750950873043,5.19976504,143.32,143.28,6.28]
[1750950873246,5.19976504,143.31,143.28,6.28]
[1750950873415,5.19976504,143.3,143.28,6.28]
[1750950873617,6.5397063,143.33,143.28,6.28]
[1750950873618,5.19976504,143.32,143.28,6.28]
[1750950873818,5.19976504,143.31,143.28,6.28]
[1750950874042,5.19976504,143.3,143.28,6.28]
[1750950874243,5.19976504,143.29,143.28,6.28]
[1750950874546,5.19976504,143.31,143.28,6.28]
[1750950874730,5.19976504,143.3,143.28,6.28]
[1750950875037,5.19976504,143.29,143.28,6.28]
[1750950875237,5.19976504,143.31,143.28,6.28]
[1750950875546,5.19976504,143.3,143.28,6.28]
[1750950875763,5.19976504,143.29,143.28,6.28]
[1750950877350,5.19976504,143.29,143.26,88.7]
[1750950877534,5.19976504,143.28,143.26,88.7]
[1750950877846,5.19976504,143.27,143.26,88.7]
[1750950878023,5.19976504,143.29,143.23,95.10216157]
[1750950878224,5.19976504,143.28,143.23,94.96]
[1750950878430,5.19976504,143.27,143.23,94.46]
[1750950878624,5.19976504,143.28,143.23,94.46]
[1750950878824,5.19976504,143.27,143.23,94.46]
[1750950879025,5.19976504,143.28,143.23,94.46]
[1750950879250,5.19976504,143.27,143.23,94.46]
[1750950879560,5.19976504,143.28,143.23,94.46]
[1750950879758,5.19976504,143.27,143.23,94.46]
[1750950880044,5.19976504,143.28,143.23,94.46]
[1750950880229,5.19976504,143.27,143.23,94.46]
[1750950880430,5.19976504,143.28,143.23,94.46]
[1750950880643,5.19976504,143.27,143.23,94.46]
[1750950880847,5.19976504,143.29,143.23,94.46]
[1750950881051,5.19976504,143.28,143.23,94.46]
[1750950881235,5.19976504,143.27,143.23,123.22]
[1750950881428,5.19976504,143.29,143.23,123.22]
[1750950881757,5.19976504,143.28,143.23,123.22]
[1750950881941,5.19976504,143.27,143.23,123.22]
[1750950882252,5.19976504,143.29,143.23,123.22]
[1750950882563,5.19976504,143.28,143.23,94.46]
[1750950882877,5.19976504,143.27,143.23,94.46]
[1750950883033,5.19976504,143.29,143.23,93.96]
[1750950883351,5.19976504,143.28,143.23,93.96]
[1750950883554,5.19976504,143.29,143.23,93.96]
[1750950883727,5.19976504,143.28,143.23,93.96]
[1750950883929,5.19976504,143.29,143.23,93.96]
[1750950884153,5.19976504,143.28,143.23,93.96]
[1750950884355,5.19976504,143.29,143.23,93.96]
[1750950884540,5.19976504,143.28,143.23,93.96]
[1750950884739,5.19976504,143.29,143.23,93.96]
[1750950885038,5.19976504,143.28,143.23,93.96]
[1750950885225,5.19976504,143.29,143.23,93.96]
[1750950885428,5.19976504,143.28,143.23,93.96]
[1750950885629,5.19976504,143.29,143.23,93.96]
[1750950885839,5.19976504,143.28,143.23,93.96]
[1750950886048,5.19976504,143.29,143.23,122.72]
[1750950886243,5.19976504,143.28,143.23,122.72]
[1750950886762,5.19976504,143.29,143.23,122.72]
[1750950886937,5.19976504,143.28,143.23,93.96]
[1750950887131,5.19976504,143.29,143.23,93.96]
[1750950887331,15.09288597,143.3,143.23,93.96]
[1750950887332,5.19976504,143.28,143.23,122.72]
[1750950887530,5.19976504,143.29,143.23,122.72]
[1750950887751,5.19976504,143.28,143.23,122.72]
[1750950887950,5.19976504,143.29,143.23,122.72]
[1750950888256,5.19976504,143.28,143.23,122.72]
[1750950888451,5.19976504,143.29,143.23,122.72]
[1750950888632,5.19976504,143.28,143.23,122.72]
[1750950888953,5.19976504,143.29,143.23,122.72]
[1750950889126,5.19976504,143.28,143.23,93.96]
[1750950889334,12.1786225,143.29,143.23,93.96]
[1750950889528,5.19976504,143.28,143.23,93.96]
[1750950889752,5.19976504,143.27,143.23,88.7]
[1750950889946,5.19976504,143.26,143.23,88.7]
[1750950890253,5.19976504,143.25,143.19,90.2904]
[1750950890429,5.19976504,143.26,143.19,90.2904]
[1750950890629,5.19976504,143.25,143.19,118.7504]
[1750950890853,5.19976504,143.26,143.19,118.7504]
[1750950891059,5.19976504,143.25,143.19,118.7504]
[1750950891252,5.19976504,143.26,143.19,89.9904]
[1750950891435,5.19976504,143.26,143.19,118.7504]
[1750950892059,12.18021304,143.26,143.19,118.7504]
[1750950892453,6.980448,143.26,143.19,118.7504]
[1750950892762,12.18021304,143.26,143.19,118.7504]
[1750950892953,6.980448,143.26,143.19,118.7504]
[1750950893258,12.18021304,143.26,143.18,142.36964886]
[1750950894159,12.18021304,143.26,143.18,113.60964886]
[1750950894359,12.18021304,143.26,143.18,142.36964886]
[1750950894561,12.18021304,143.26,143.18,113.60964886]
[1750950894863,12.18021304,143.26,143.18,142.36964886]
[1750950895057,12.18021304,143.26,143.18,149.03932075]
[1750950895353,12.18021304,143.26,143.18,123.72]
[1750950895562,6.980448,143.26,143.18,123.72]
[1750950895735,12.18021304,143.26,143.18,123.72]
[1750950896136,12.18021304,143.26,143.18,94.96]
[1750950896830,26.88541043,143.25,143.18,6.26]
[1750950897038,32.08517547,143.25,143.18,6.26]
[1750950897235,56.03436477,143.25,143.18,6.26]
[1750950897438,0.14216157,143.23,143.15,88.7]
[1750950897653,5.34192661,143.23,143.14,31.38]
[1750950898177,0.14216157,143.23,143.14,31.38]
[1750950898662,12.18251328,143.22,143.14,31.38]
[1750950899141,6.98274824,143.22,143.14,31.38]
[1750950900467,18.68221958,143.22,143.14,31.38]
[1750950900635,6.98274824,143.22,143.14,31.38]
[1750950902136,18.68156382,143.23,143.14,45.0357742]
[1750950902341,6.98209248,143.23,143.15,6.66967189]
[1750950903059,6.98209248,143.23,143.15,95.36967189]
[1750950903443,5.19976504,143.24,143.18,18.79181043]
[1750950903650,6.4997063,143.27,143.22,6.66967189]
[1750950903949,11.69947134,143.3,143.24,6.66967189]
[1750950904266,25.34254172,143.32,143.25,6.28]
[1750950904460,13.64307038,143.32,143.25,6.28]
[1750950904643,13.64307038,143.32,143.25,12.94967189]
[1750950904844,6.6655,143.32,143.25,41.72967189]
[1750950905043,13.51692741,143.33,143.25,41.72967189]
[1750950905262,6.5397063,143.33,143.27,6.66967189]
[1750950905455,0.04,143.33,143.27,6.66967189]
[1750950905659,0.04,143.33,143.28,6.66967189]
[1750950905866,0.04,143.33,143.29,6.66967189]
[1750950907161,0.04,143.33,143.3,6.66967189]
[1750950907478,0.04,143.33,143.31,6.26]
[1750950907765,0.04,143.33,143.31,41.68967189]
[1750950908264,0.04,143.33,143.29,53.81181043]
[1750950908673,0.04,143.33,143.29,35.02]
[1750950909143,0.04,143.33,143.28,6.26]
[1750950914765,6.4895,143.32,143.28,6.26]
[1750950916375,13.46733416,143.32,143.28,6.26]
[1750950916766,6.4895,143.32,143.28,6.26]
[1750950916970,0.04,143.33,143.28,6.26]
[1750950917183,0.04,143.33,143.28,101.62967189]
[1750950917865,0.04,143.33,143.28,94.96]
[1750950918169,7.01690758,143.33,143.28,94.96]
[1750950918475,0.04,143.33,143.28,94.96]
[1750950921184,0.04,143.33,143.28,6.26]
[1750950924386,0.04,143.33,143.28,12.92967189]
[1750950924580,0.04,143.33,143.28,41.68967189]
[1750950924795,0.04,143.33,143.28,35.02]
[1750950927184,0.04,143.33,143.28,123.72]
[1750950928387,0.04,143.33,143.29,25.46148232]
[1750950928591,0.04,143.33,143.29,107.49181043]
[1750950928892,0.04,143.33,143.29,88.7]
[1750950930688,0.04,143.33,143.28,88.7]
[1750950930894,6.3857,143.33,143.28,88.7]
[1750950931686,6.3857,143.33,143.27,6.26]
[1750950932678,0.04,143.33,143.27,94.96]
[1750950932878,0.04,143.33,143.27,123.72]
[1750950936794,0.04,143.33,143.28,18.79181043]
[1750950939082,0.04,143.33,143.28,25.46148232]
[1750950940196,0.04,143.33,143.28,18.79181043]
[1750950940370,0.04,143.33,143.31,6.66967189]
[1750950940720,0.04,143.33,143.32,7.36741121]
[1750950941775,0.04,143.33,143.32,26.15922164]
[1750950943702,0.04,143.33,143.32,19.48954975]
[1750950944603,0.04,143.33,143.31,117.46]
[1750950945791,0.04,143.33,143.31,88.7]
[1750950946013,0.04,143.33,143.27,24.90964886]
[1750950946180,0.04,143.33,143.27,94.96]
[1750950947279,12.2001344,143.33,143.27,94.96]
[1750950947478,5.18322797,143.32,143.27,6.26]
[1750950947704,11.66226293,143.31,143.27,6.26]
[1750950947906,5.18322797,143.3,143.27,6.26]
[1750950948283,5.18322797,143.29,143.27,6.26]
[1750950948706,5.18322797,143.3,143.27,6.26]
[1750950948926,5.18322797,143.29,143.27,6.26]
[1750950949100,5.18322797,143.3,143.27,6.26]
[1750950949288,5.18322797,143.29,143.27,6.26]
[1750950949480,5.18322797,143.3,143.27,6.26]
[1750950949696,5.18322797,143.29,143.27,6.26]
[1750950949901,5.18322797,143.31,143.27,6.26]
[1750950950108,5.18322797,143.3,143.27,6.26]
[1750950950311,5.18322797,143.29,143.27,6.26]
[1750950950604,5.18322797,143.31,143.27,6.26]
[1750950950807,5.18322797,143.3,143.27,6.26]
[1750950950986,5.18322797,143.29,143.27,6.26]
[1750950951313,5.18322797,143.31,143.27,6.26]
[1750950951606,5.18322797,143.3,143.27,6.26]
[1750950951809,5.18322797,143.29,143.27,6.26]
[1750950951986,5.18322797,143.31,143.27,6.26]
[1750950952189,5.18322797,143.3,143.27,6.26]
[1750950952488,13.45687295,143.32,143.27,6.26]
[1750950952489,5.18322797,143.29,143.27,6.26]
[1750950952685,5.18322797,143.31,143.27,6.26]
[1750950952891,5.18322797,143.3,143.27,6.26]
[1750950953097,5.18322797,143.29,143.27,6.26]
[1750950953293,5.18322797,143.31,143.27,6.26]
[1750950953494,5.18322797,143.3,143.27,6.26]
[1750950953682,5.18322797,143.29,143.27,94.96]
[1750950953885,5.18322797,143.31,143.27,94.96]
[1750950954083,5.18322797,143.3,143.27,94.96]
[1750950954311,5.18322797,143.31,143.27,94.96]